fUSD/lending_fUSD_20250916
["ID","MTS","AMOUNT","RATE_DAILY","PERIOD"]
[385826606,1758057088454,-400.0,0.00032876,6]
[385826607,1758057088466,-400.0,0.00032876,6]
[385826608,1758057088478,-400.0,0.00032876,6]
[385826609,1758057088491,-400.0,0.00032876,6]
[385826610,1758057088503,-1014.87,0.00032876,6]
[385826611,1758057088516,-400.0,0.00032876,6]
[385826612,1758057088529,-524.6,0.00032876,6]
[385826613,1758057088541,-400.0,0.00032876,6]
[385826614,1758057088555,-400.0,0.00032876,6]
[385826615,1758057088569,-493.11,0.00032876,6]
[385826616,1758057088581,-400.0,0.00032876,6]
[385826617,1758057088593,-412.98,0.00032876,6]
[385826618,1758057088605,-588.1,0.00032876,6]
[385826619,1758057088617,-400.0,0.00032876,6]
[385826620,1758057088629,-400.0,0.00032876,6]
[385826621,1758057088641,-400.0,0.00032876,6]
[385826622,1758057088654,-529.64,0.00032876,6]
[385826623,1758057088668,-574.6,0.00032876,6]
[385826624,1758057088680,-436.67,0.00032876,6]
[385826625,1758057088691,-400.0,0.00032876,6]
[385826626,1758057088703,-983.68,0.00032876,6]
[385826627,1758057088715,-400.0,0.00032876,6]
[385826628,1758057088726,-410.54,0.00032876,6]
[385826629,1758057088738,-400.0,0.00032876,6]
[385826630,1758057088750,-400.0,0.00032876,6]
[385826631,1758057088762,-875.58,0.00032876,6]
[385826632,1758057088775,-457.79,0.00032876,6]
[385826633,1758057088787,-409.35,0.00032876,6]
[385826634,1758057088799,-400.0,0.00032876,6]
[385826635,1758057088811,-1197.89,0.00032876,120]
[385826636,1758057088822,-625.93,0.00032876,6]
[385826637,1758057088834,-400.0,0.00032876,6]
[385826638,1758057088846,-791.37,0.00032876,6]
[385826639,1758057088857,-609.54,0.00032876,6]
[385826640,1758057088870,-510.33,0.00032876,6]
[385826641,1758057088882,-556.43,0.00032876,6]
[385826642,1758057088896,-745.45,0.00032876,6]
[385826643,1758057088912,-400.0,0.00032876,6]
[385826644,1758057088925,-400.0,0.00032876,6]
[385826645,1758057088937,-438.34,0.00032876,6]
[385826646,1758057088950,-636.26,0.00032876,6]
[385826647,1758057088961,-1260.15,0.00032876,6]
[385826648,1758057088974,-400.0,0.00032876,6]
[385826649,1758057088986,-400.0,0.00032876,6]
[385826650,1758057088999,-400.0,0.00032876,6]
[385826651,1758057089012,-461.54,0.00032876,6]
[385826652,1758057089024,-479.5,0.00032876,6]
[385826653,1758057089036,-587.63,0.00032876,6]
[385826654,1758057089047,-1289.38,0.00032876,6]
[385826655,1758057089059,-506.39,0.00032876,6]
[385826656,1758057089071,-400.0,0.00032876,6]
[385826657,1758057089083,-400.0,0.00032876,6]
[385826658,1758057089095,-462.29,0.00032876,6]
[385826659,1758057089107,-400.0,0.00032876,6]
[385826660,1758057089119,-400.0,0.00032876,6]
[385826661,1758057089131,-400.0,0.00032876,6]
[385826662,1758057089143,-400.0,0.00032876,6]
[385826663,1758057089154,-690.9,0.00032876,6]
[385826664,1758057089167,-400.0,0.00032876,6]
[385826665,1758057089178,-400.0,0.00032876,6]
[385826666,1758057089190,-449.23,0.00032876,5]
[385826667,1758057089203,-1146.39,0.00032876,6]
[385826668,1758057089216,-400.0,0.00032876,6]
[385826669,1758057089228,-684.79,0.00032876,6]
[385826670,1758057089239,-400.0,0.00032876,6]
[385826671,1758057089251,-400.0,0.00032876,6]
[385826672,1758057089262,-400.0,0.00032876,6]
[385826673,1758057089274,-400.0,0.00032876,6]
[385826674,1758057089285,-843.08,0.00032876,6]
[385826675,1758057089297,-400.0,0.00032876,6]
[385826676,1758057089311,-400.0,0.00032876,6]
[385826677,1758057089325,-400.0,0.00032876,6]
[385826678,1758057089337,-400.0,0.00032876,6]
[385826679,1758057089349,-400.0,0.00032876,6]
[385826680,1758057089361,-497.6,0.00032876,6]
[385826681,1758057089373,-400.0,0.00032876,6]
[385826682,1758057089384,-400.0,0.00032876,6]
[385826683,1758057089395,-400.0,0.00032876,6]
[385826684,1758057089406,-400.0,0.00032876,6]
[385826685,1758057089417,-400.0,0.00032876,6]
[385826686,1758057089429,-391.68283673,0.00032876,6]
[385826687,1758057089440,-400.0,0.00032876,6]
[385826688,1758057089452,-400.0,0.00032876,6]
[385826689,1758057089464,-400.0,0.00032876,6]
[385826690,1758057089477,-400.0,0.00032876,6]
[385826691,1758057089490,-2611.36,0.00032876,6]
[385826692,1758057089502,-400.0,0.00032876,6]
[385826693,1758057089514,-400.0,0.00032876,6]
[385826694,1758057089526,-400.0,0.00032876,6]
[385826695,1758057089538,-553.62,0.00032876,6]
[385826696,1758057089550,-467.85,0.00032876,6]
[385826697,1758057089561,-400.0,0.00032876,6]
[385826698,1758057089573,-836.09,0.00032876,6]
[385826699,1758057089584,-400.0,0.00032876,6]
[385826700,1758057089596,-400.0,0.00032876,6]
[385826701,1758057089608,-400.0,0.00032876,6]
[385826702,1758057089620,-1289.35,0.00032876,6]
[385826703,1758057089631,-400.0,0.00032876,6]
[385826704,1758057089647,-400.0,0.00032876,6]
[385826705,1758057089658,-430.5,0.00032876,6]
[385826706,1758057089670,-400.0,0.00032876,6]
[385826707,1758057089682,-400.0,0.00032876,6]
[385826708,1758057089693,-400.0,0.00032876,6]
[385826709,1758057089704,-441.74,0.00032876,6]
[385826710,1758057089716,-479.52,0.00032876,6]
[385826711,1758057089728,-400.0,0.00032876,6]
[385826712,1758057089739,-507.91,0.00032876,6]
[385826713,1758057089751,-400.0,0.00032876,6]
[385826714,1758057089763,-547.58,0.00032876,6]
[385826715,1758057089775,-400.0,0.00032876,6]
[385826716,1758057089787,-2216.47,0.00032876,6]
[385826717,1758057089798,-400.0,0.00032876,6]
[385826718,1758057089810,-3000.0,0.000329,12]
[385826719,1758057089822,-3581.74,0.000329,14]
[385826720,1758057089833,-2728.80702613,0.00032934,2]
[385826721,1758057089845,-500.0,0.00032972,7]
[385826722,1758057089857,-839.09243417,0.00032984,2]
[385826723,1758057089868,-154.0,0.00033,14]
[385826724,1758057089879,-200.0,0.00033027,10]
[385826725,1758057089891,-3248.70686193,0.0003305,2]
[385826726,1758057089907,-1100.0,0.00033066,7]
[385826727,1758057089919,-500.0,0.00033071,7]
[385826728,1758057089931,-1100.0,0.00033072,7]
[385826729,1758057089943,-1395.64841539,0.0003309,2]
[385826730,1758057089955,-11290.01160898,0.0003309,2]
[385826731,1758057089967,-9057.83353146,0.0003309,2]
[385826732,1758057089980,-773.8401566,0.0003309,2]
[385826733,1758057089991,-489.22422608,0.0003309,2]
[385826734,1758057090004,-2000.0,0.00033134,3]
[385826735,1758057090016,-500.0,0.00033136,2]
[385826736,1758057090027,-164.04644488,0.00033136,2]
[385826737,1758057090039,-150.0,0.00033136,2]
[385826738,1758057090051,-150.0,0.00033136,2]
[385826739,1758057090062,-150.0,0.00033136,2]
[385826740,1758057090075,-150.0,0.00033136,2]
[385826741,1758057090087,-500.0,0.00033136,2]
[385826742,1758057090098,-500.0,0.00033136,2]
[385826743,1758057090110,-500.0,0.00033136,2]
[385826744,1758057090122,-500.0,0.00033136,2]
[385826745,1758057090134,-500.0,0.00033136,2]
[385826746,1758057090146,-500.0,0.00033136,2]
[385826747,1758057090158,-500.0,0.00033136,2]
[385826748,1758057090169,-150.0,0.00033136,2]
[385826749,1758057090181,-150.0,0.00033136,2]
[385826750,1758057090192,-500.0,0.00033136,2]
[385826751,1758057090204,-151.9875442,0.00033136,2]
[385826752,1758057090216,-150.44757711,0.00033136,2]
[385826753,1758057090227,-150.0,0.00033136,2]
[385826754,1758057090239,-500.0,0.00033136,2]
[385826755,1758057090251,-150.0,0.00033136,2]
[385826756,1758057090263,-150.0,0.00033136,2]
[385826757,1758057090274,-150.0,0.00033136,2]
[385826758,1758057090287,-500.0,0.00033136,2]
[385826759,1758057090298,-150.0,0.00033136,2]
[385826760,1758057090310,-500.0,0.00033136,2]
[385826761,1758057090323,-500.0,0.00033136,2]
[385826762,1758057090335,-500.0,0.00033136,2]
[385826763,1758057090347,-500.0,0.00033136,2]
[385826764,1758057090681,-644.0,0.00033136,2]
[385826765,1758057090711,-500.0,0.00033136,2]
[385826766,1758057090730,-150.0,0.00033136,2]
[385826767,1758057090749,-500.0,0.00033136,2]
[385826768,1758057090759,-500.0,0.00033136,2]
[385826769,1758057090769,-1100.0,0.00033138,7]
[385826770,1758057090778,-150.0,0.00033139,2]
[385826771,1758057090788,-1300.0,0.00033143,7]
[385826772,1758057090798,-1300.0,0.00033145,7]
[385826773,1758057090807,-365.33,0.00033149,7]
[385826774,1758057090816,-472.24,0.0003315,6]
[385826775,1758057090826,-400.0,0.0003315,6]
[385826776,1758057090835,-400.0,0.0003315,6]
[385826777,1758057090845,-400.0,0.0003315,6]
[385826778,1758057090855,-400.0,0.0003315,6]
[385826779,1758057090865,-400.0,0.0003315,6]
[385826780,1758057090874,-400.0,0.0003315,6]
[385826781,1758057090884,-400.0,0.0003315,6]
[385826782,1758057090893,-400.0,0.0003315,120]
[385826783,1758057090908,-400.0,0.0003315,6]
[385826784,1758057090918,-349.16180601,0.0003315,6]
[385826785,1758057090928,-400.0,0.0003315,6]
[385826786,1758057090938,-248.73735869,0.0003315,6]
[385826787,1758057090949,-400.0,0.0003315,6]
[385826788,1758057090960,-400.0,0.0003315,6]
[385826789,1758057090970,-400.0,0.0003315,6]
[385826790,1758057090981,-400.0,0.0003315,6]
[385826791,1758057090992,-595.04,0.0003315,6]
[385826792,1758057091002,-400.0,0.0003315,6]
[385826793,1758057091011,-817.46,0.0003315,6]
[385826794,1758057091021,-400.0,0.0003315,6]
[385826795,1758057091031,-511.05660992,0.0003315,6]
[385826796,1758057091042,-426.72,0.0003315,6]
[385826797,1758057091053,-400.0,0.0003315,6]
[385826798,1758057091063,-400.0,0.0003315,6]
[385826799,1758057091073,-400.0,0.0003315,6]
[385826800,1758057091082,-400.0,0.0003315,6]
[385826801,1758057091092,-400.0,0.0003315,6]
[385826802,1758057091102,-400.0,0.0003315,6]
[385826803,1758057091113,-400.0,0.0003315,6]
[385826804,1758057091123,-400.0,0.0003315,6]
[385826805,1758057091134,-464.56329454,0.0003315,6]
[385826806,1758057091145,-466.82,0.0003315,6]
[385826807,1758057091154,-436.46,0.0003315,6]
[385826808,1758057091163,-400.0,0.0003315,6]
[385826809,1758057091173,-400.0,0.0003315,6]
[385826810,1758057091182,-319.97962549,0.0003315,6]
[385826811,1758057091192,-252.24795829,0.0003315,6]
[385826812,1758057091203,-444.47,0.0003315,6]
[385826813,1758057091214,-400.0,0.0003315,6]
[385826814,1758057091224,-422.71934247,0.0003315,6]
[385826815,1758057091234,-400.0,0.0003315,6]
[385826816,1758057091244,-470.45804668,0.0003315,6]
[385826817,1758057091253,-400.0,0.0003315,6]
[385826818,1758057091263,-400.0,0.0003315,6]
[385826819,1758057091274,-400.0,0.0003315,6]
[385826820,1758057091284,-400.0,0.0003315,6]
[385826821,1758057091294,-400.0,0.0003315,6]
[385826822,1758057091303,-400.0,0.0003315,6]
[385826823,1758057091313,-538.45,0.0003315,6]
[385826824,1758057091322,-400.0,0.0003315,6]
[385826825,1758057091332,-897.93,0.0003315,6]
[385826826,1758057091341,-400.0,0.0003315,6]
[385826827,1758057091351,-400.39,0.0003315,6]
[385826828,1758057091361,-477.46,0.0003315,6]
[385826829,1758057091371,-400.0,0.0003315,6]
[385826830,1758057091381,-400.0,0.0003315,6]
[385826831,1758057091391,-400.0,0.0003315,6]
[385826832,1758057091400,-400.0,0.0003315,6]
[385826833,1758057091410,-400.0,0.0003315,6]
[385826834,1758057091419,-400.0,0.0003315,6]
[385826835,1758057091429,-420.75,0.0003315,6]
[385826836,1758057091439,-400.0,0.0003315,6]
[385826837,1758057091449,-400.0,0.0003315,6]
[385826838,1758057091458,-2152.72,0.0003315,6]
[385826839,1758057091468,-446.8,0.0003315,6]
[385826840,1758057091478,-400.0,0.0003315,6]
[385826841,1758057091488,-400.0,0.0003315,6]
[385826842,1758057091498,-400.0,0.0003315,6]
[385826843,1758057091508,-400.0,0.0003315,6]
[385826844,1758057091518,-341.37591117,0.0003315,6]
[385826845,1758057091527,-400.0,0.0003315,6]
[385826846,1758057091537,-400.0,0.0003315,6]
[385826847,1758057091547,-400.0,0.0003315,6]
[385826848,1758057091557,-400.0,0.0003315,6]
[385826849,1758057091566,-203.43,0.0003315,6]
[385826850,1758057091576,-400.0,0.0003315,6]
[385826851,1758057091585,-400.0,0.0003315,6]
[385826852,1758057091594,-400.0,0.0003315,6]
[385826853,1758057091604,-400.0,0.0003315,6]
[385826854,1758057091613,-400.0,0.0003315,6]
[385826855,1758057091623,-414.26,0.0003315,6]
[385826856,1758057091632,-536.76666276,0.0003315,6]
[385826857,1758057091642,-633.69,0.0003315,6]
[385826858,1758057091651,-400.0,0.0003315,6]
[385826859,1758057091661,-400.0,0.0003315,6]
[385826860,1758057091670,-400.0,0.0003315,6]
[385826861,1758057091680,-400.0,0.0003315,6]
[385826862,1758057091689,-339.17,0.0003315,6]
[385826863,1758057091699,-400.0,0.0003315,6]
[385826864,1758057091708,-426.84218946,0.0003315,6]
[385826865,1758057091717,-488.35,0.0003315,6]
[385826866,1758057091727,-400.0,0.0003315,6]
[385826867,1758057091736,-400.0,0.0003315,6]
[385826868,1758057091745,-400.0,0.0003315,6]
[385826869,1758057091755,-636.75,0.0003315,6]
[385826870,1758057091765,-479.73321409,0.0003315,6]
[385826871,1758057091775,-400.0,0.0003315,6]
[385826872,1758057091784,-400.0,0.0003315,6]
[385826873,1758057091794,-400.0,0.0003315,6]
[385826874,1758057091804,-400.0,0.0003315,6]
[385826875,1758057091813,-400.0,0.0003315,6]
[385826876,1758057091822,-605.63,0.0003315,6]
[385826877,1758057091832,-400.0,0.0003315,6]
[385826878,1758057091841,-400.0,0.0003315,6]
[385826879,1758057091851,-535.77,0.0003315,6]
[385826880,1758057091861,-400.0,0.0003315,6]
[385826881,1758057091870,-400.0,0.0003315,6]
[385826882,1758057091880,-400.0,0.0003315,6]
[385826883,1758057091890,-609.74,0.0003315,6]
[385826884,1758057091901,-400.0,0.0003315,6]
[385826885,1758057091911,-400.0,0.0003315,6]
[385826886,1758057091921,-400.0,0.0003315,6]
[385826887,1758057091931,-713.21,0.0003315,6]
[385826888,1758057091942,-470.05,0.0003315,6]
[385826889,1758057091951,-400.0,0.0003315,6]
[385826890,1758057091961,-400.0,0.0003315,6]
[385826891,1758057091970,-545.98,0.0003315,6]
[385826892,1758057091980,-435.33,0.0003315,6]
[385826893,1758057091991,-400.0,0.0003315,6]
[385826894,1758057092001,-1275.84,0.0003315,6]
[385826895,1758057092011,-400.0,0.0003315,6]
[385826896,1758057092020,-400.0,0.0003315,6]
[385826897,1758057092030,-400.0,0.0003315,6]
[385826898,1758057092040,-1307.51,0.0003315,6]
[385826899,1758057092050,-400.0,0.0003315,6]
[385826900,1758057092059,-400.0,0.0003315,6]
[385826901,1758057092069,-585.24,0.0003315,6]
[385826902,1758057092078,-400.0,0.0003315,6]
[385826903,1758057092088,-2094.1,0.0003315,6]
[385826904,1758057092097,-477.7444979,0.0003315,6]
[385826905,1758057092107,-432.42,0.0003315,6]
[385826906,1758057092117,-426.07,0.0003315,6]
[385826907,1758057092126,-807.22,0.0003315,6]
[385826908,1758057092136,-400.0,0.0003315,6]
[385826909,1758057092145,-450.81,0.0003315,6]
[385826910,1758057092155,-400.0,0.0003315,6]
[385826911,1758057092165,-1320.54,0.0003315,6]
[385826912,1758057092176,-400.0,0.0003315,6]
[385826913,1758057092185,-400.0,0.0003315,6]
[385826914,1758057092194,-2034.04,0.0003315,6]
[385826915,1758057092203,-632.25,0.0003315,6]
[385826916,1758057092213,-400.0,0.0003315,6]
[385826917,1758057092223,-400.0,0.0003315,6]
[385826918,1758057092232,-691.17,0.0003315,6]
[385826919,1758057092243,-712.91,0.0003315,6]
[385826920,1758057092253,-400.0,0.0003315,6]
[385826921,1758057092262,-400.0,0.0003315,6]
[385826922,1758057092271,-400.0,0.0003315,6]
[385826923,1758057092281,-400.0,0.0003315,6]
[385826924,1758057092290,-531.95,0.0003315,6]
[385826925,1758057092300,-400.0,0.0003315,6]
[385826926,1758057092309,-400.0,0.0003315,6]
[385826927,1758057092319,-400.0,0.0003315,6]
[385826928,1758057092328,-400.0,0.0003315,6]
[385826929,1758057092338,-432.2210147,0.0003315,6]
[385826930,1758057092347,-400.0,0.0003315,6]
[385826931,1758057092357,-682.52,0.0003315,6]
[385826932,1758057092367,-2182.91,0.0003315,6]
[385826933,1758057092376,-668.63,0.0003315,6]
[385826934,1758057092386,-400.0,0.0003315,6]
[385826935,1758057092395,-577.47,0.0003315,6]
[385826936,1758057092404,-400.0,0.0003315,6]
[385826937,1758057092413,-400.0,0.0003315,6]
[385826938,1758057092424,-400.0,0.0003315,6]
[385826939,1758057092434,-400.0,0.0003315,6]
[385826940,1758057092444,-613.19,0.0003315,6]
[385826941,1758057092454,-409.76,0.0003315,6]
[385826942,1758057092463,-442.69710868,0.0003315,6]
[385826943,1758057092473,-400.0,0.0003315,6]
[385826944,1758057092482,-1251.89,0.0003315,6]
[385826945,1758057092491,-1025.88,0.0003315,6]
[385826946,1758057092501,-400.0,0.0003315,6]
[385826947,1758057092510,-400.0,0.0003315,6]
[385826948,1758057092519,-400.0,0.0003315,6]
[385826949,1758057092529,-924.97,0.0003315,6]
[385826950,1758057092538,-593.74,0.0003315,6]
[385826951,1758057092548,-605.66,0.0003315,6]
[385826952,1758057092557,-516.31,0.0003315,6]
[385826953,1758057092567,-400.0,0.0003315,6]
[385826954,1758057092576,-400.0,0.0003315,6]
[385826955,1758057092585,-400.0,0.0003315,6]
[385826956,1758057092595,-400.0,0.0003315,6]
[385826957,1758057092604,-400.0,0.0003315,6]
[385826958,1758057092614,-1014.87,0.0003315,6]
[385826959,1758057092623,-400.0,0.0003315,6]
[385826960,1758057092633,-524.6,0.0003315,6]
[385826961,1758057092642,-400.0,0.0003315,6]
[385826962,1758057092652,-400.0,0.0003315,6]
[385826963,1758057092661,-493.11,0.0003315,6]
[385826964,1758057092671,-400.0,0.0003315,6]
[385826965,1758057092680,-412.98,0.0003315,6]
[385826966,1758057092690,-588.1,0.0003315,6]
[385826967,1758057092699,-400.0,0.0003315,6]
[385826968,1758057092708,-400.0,0.0003315,6]
[385826969,1758057092718,-529.64,0.0003315,6]
[385826970,1758057092727,-400.0,0.0003315,6]
[385826971,1758057092736,-574.6,0.0003315,6]
[385826972,1758057092745,-436.67,0.0003315,6]
[385826973,1758057092755,-400.0,0.0003315,6]
[385826974,1758057092765,-983.68,0.0003315,6]
[385826975,1758057092774,-400.0,0.0003315,6]
[385826976,1758057092783,-410.54,0.0003315,6]
[385826977,1758057092792,-400.0,0.0003315,6]
[385826978,1758057092802,-400.0,0.0003315,6]
[385826979,1758057092811,-875.58,0.0003315,6]
[385826980,1758057092821,-409.35,0.0003315,6]
[385826981,1758057092830,-457.79,0.0003315,6]
[385826982,1758057092840,-400.0,0.0003315,6]
[385826983,1758057092850,-625.93,0.0003315,6]
[385826984,1758057092859,-400.0,0.0003315,6]
[385826985,1758057092869,-791.37,0.0003315,6]
[385826986,1758057092879,-609.54,0.0003315,6]
[385826987,1758057092889,-510.33,0.0003315,6]
[385826988,1758057092902,-556.43,0.0003315,6]
[385826989,1758057092912,-745.45,0.0003315,6]
[385826990,1758057092922,-400.0,0.0003315,6]
[385826991,1758057092932,-400.0,0.0003315,6]
[385826992,1758057092943,-438.34,0.0003315,6]
[385826993,1758057092952,-636.26,0.0003315,6]
[385826994,1758057092962,-1260.15,0.0003315,6]
[385826995,1758057092975,-400.0,0.0003315,6]
[385826996,1758057092985,-400.0,0.0003315,6]
[385826997,1758057092996,-400.0,0.0003315,6]
[385826998,1758057093006,-479.5,0.0003315,6]
[385826999,1758057093016,-461.54,0.0003315,6]
[385827000,1758057093026,-587.63,0.0003315,6]
[385827001,1758057093037,-1289.38,0.0003315,6]
[385827002,1758057093048,-506.39,0.0003315,6]
[385827003,1758057093058,-400.0,0.0003315,6]
[385827004,1758057093068,-462.29,0.0003315,6]
[385827005,1758057093078,-400.0,0.0003315,6]
[385827006,1758057093089,-400.0,0.0003315,6]
[385827007,1758057093099,-400.0,0.0003315,6]
[385827008,1758057093109,-311.53411079,0.0003315,6]
[385827009,1758057093119,-400.0,0.0003315,6]
[385827010,1758057093129,-690.9,0.0003315,6]
[385827011,1758057093139,-400.0,0.0003315,6]
[385827012,1758057093149,-400.0,0.0003315,6]
[385827013,1758057093159,-449.23,0.0003315,5]
[385827014,1758057093169,-1146.39,0.0003315,6]
[385827015,1758057093180,-400.0,0.0003315,6]
[385827016,1758057093190,-185.17132203,0.0003315,6]
[385827017,1758057093199,-684.79,0.0003315,6]
[385827018,1758057093210,-400.0,0.0003315,6]
[385827019,1758057093219,-400.0,0.0003315,6]
[385827020,1758057093229,-400.0,0.0003315,6]
[385827021,1758057093238,-843.08,0.0003315,6]
[385827022,1758057093249,-400.0,0.0003315,6]
[385827023,1758057093259,-400.0,0.0003315,6]
[385827024,1758057093269,-400.0,0.0003315,6]
[385827025,1758057093278,-400.0,0.0003315,6]
[385827026,1758057093288,-400.0,0.0003315,6]
[385827027,1758057093298,-497.6,0.0003315,6]
[385827028,1758057093307,-400.0,0.0003315,6]
[385827029,1758057093317,-400.0,0.0003315,6]
[385827030,1758057093327,-400.0,0.0003315,6]
[385827031,1758057093337,-400.0,0.0003315,6]
[385827032,1758057093347,-400.0,0.0003315,6]
[385827033,1758057093357,-400.0,0.0003315,6]
[385827034,1758057093367,-400.0,0.0003315,6]
[385827035,1758057093378,-400.0,0.0003315,6]
[385827036,1758057093388,-400.0,0.0003315,6]
[385827037,1758057093398,-2611.36,0.0003315,6]
[385827038,1758057093408,-400.0,0.0003315,6]
[385827039,1758057093419,-400.0,0.0003315,6]
[385827040,1758057093431,-400.0,0.0003315,6]
[385827041,1758057093441,-553.62,0.0003315,6]
[385827042,1758057093452,-483.47243881,0.0003315,6]
[385827043,1758057093462,-467.85,0.0003315,6]
[385827044,1758057093472,-836.09,0.0003315,6]
[385827045,1758057093483,-400.0,0.0003315,6]
[385827046,1758057093493,-400.0,0.0003315,6]
[385827047,1758057093504,-400.0,0.0003315,6]
[385827048,1758057093514,-1289.35,0.0003315,6]
[385827049,1758057093525,-400.0,0.0003315,6]
[385827050,1758057093535,-400.0,0.0003315,6]
[385827051,1758057093545,-430.5,0.0003315,6]
[385827052,1758057093555,-400.0,0.0003315,6]
[385827053,1758057093565,-400.0,0.0003315,6]
[385827054,1758057093575,-400.0,0.0003315,6]
[385827055,1758057093585,-441.74,0.0003315,6]
[385827056,1758057093595,-276.75513,0.0003315,2]
[385827057,1758057093605,-479.52,0.0003315,6]
[385827058,1758057093615,-400.0,0.0003315,6]
[385827059,1758057093625,-507.91,0.0003315,6]
[385827060,1758057093634,-400.0,0.0003315,6]
[385827061,1758057093645,-547.58,0.0003315,6]
[385827062,1758057093655,-400.0,0.0003315,6]
[385827063,1758057093665,-2216.47,0.0003315,6]
[385827064,1758057093679,-400.0,0.0003315,6]
[385827065,1758057093689,-500.0,0.00033168,7]
[385827066,1758057093699,-1300.0,0.00033174,7]
[385827067,1758057093709,-48307.6154846,0.0003319,2]
[385827068,1758057093719,-5402.9709106,0.0003319,2]
[385827069,1758057093729,-28028.3325862,0.0003319,2]
[385827070,1758057093739,-834990.6467212,0.0003319,2]
[385827071,1758057093749,-1605.6459351,0.0003319,2]
[385827072,1758057093948,-10767.2031571,0.0003319,2]
[385827073,1758057093969,-267050.8065933,0.0003319,2]
[385827074,1758057093980,-6338.6655178,0.0003319,2]
[385827075,1758057093990,-1300.0,0.00033216,7]
[385827076,1758057094000,-153.9,0.00033222,30]
[385827077,1758057094010,-173.1,0.00033222,30]
[385827078,1758057094019,-168.49,0.00033231,2]
[385827079,1758057094030,-161.33278727,0.0003326,2]
[385827080,1758057094039,-500.0,0.00033278,7]
[385827081,1758057094049,-151.0,0.00033293,6]
[385827082,1758057094060,-500.0,0.00033299,120]
[385827083,1758057094070,-200.0,0.00033299,14]
[385827084,1758057094079,-151.0,0.00033299,14]
[385827085,1758057094089,-200.0,0.00033299,14]
[385827086,1758057094099,-200.0,0.00033299,14]
[385827087,1758057094109,-156.587,0.00033299,14]
[385827088,1758057094119,-162.380719,0.00033299,14]
[385827089,1758057094129,-168.3888056,0.00033299,14]
[385827090,1758057094139,-200.0,0.00033299,14]
[385827091,1758057094149,-267.46074303,0.00033299,14]
[385827092,1758057094160,-151.0,0.00033299,14]
[385827093,1758057094170,-151.0,0.00033299,14]
[385827094,1758057094181,-151.0,0.00033299,14]
[385827095,1758057094191,-151.0,0.00033299,14]
[385827096,1758057094201,-151.0,0.00033299,14]
[385827097,1758057094211,-151.0,0.00033299,14]
[385827098,1758057094221,-151.0,0.00033299,14]
[385827099,1758057094230,-151.0,0.00033299,14]
[385827100,1758057094240,-151.0,0.00033299,14]
[385827101,1758057094250,-151.0,0.00033299,14]
[385827102,1758057094259,-151.0,0.00033299,14]
[385827103,1758057094269,-200.0,0.00033299,14]
[385827104,1758057094278,-200.0,0.00033299,14]
[385827105,1758057094289,-200.0,0.00033299,14]